{"text_format":"1","workbook":"xlsx","n_sheets":3,"sheets":["Sheet1","AlRegDeeds","Local TN RoD"],"not_rendered":{"charts":0,"images":2,"macros":1,"external_links":0,"defined_names":0,"comments":0,"pivot_tables":0},"unopened":[],"bounds":{"document_bytes":16777216,"sheet_cells":100000,"rows_first":2000,"rows_last":500,"rows_between":2000,"halvings":0,"cell_chars":16384,"cell_head_chars":4096},"cells_cut":0,"cells_raw":0,"read":"whole","date_system":"1900"}

{"sheet":"Sheet1","index":0,"n_rows":255,"n_cols":28,"rows_kept":255,"cut":false,"hidden":false,"merged":[[0,12,0,13],[0,14,0,15],[0,0,0,1],[0,2,0,3],[0,4,0,5],[0,6,0,7],[0,8,0,9],[0,10,0,11],[0,26,0,27],[0,16,0,17],[0,18,0,19],[0,20,0,21],[0,22,0,23],[0,24,0,25]]}
["Tennessee",null,"Georgia",null,"Alabama",null,"Florida",null,"Kentucky",null,"Missippi",null,"Louisiana",null,"Texas",null,"North Carolina",null,"South Carolina",null,"West Virginia",null,"Virginia",null,"Arkansas",null,"Oklahoma"]
["Anderson",{"$f":"HYPERLINK(\"https://duckduckgo.com/?q=\"&A2&\"+County%2C+\"&A$1&\"+Register+of+Deeds&ia=web\",A2&\" County\")","v":"Anderson County"},"Appling",{"$f":"HYPERLINK(\"https://duckduckgo.com/?q=\"&C2&\"+County%2C+\"&C$1&\"+Register+of+Deeds&ia=web\",C2&\" County\")","v":"Appling County"},"Autauga",{"$f":"HYPERLINK(\"https://duckduckgo.com/?q=\"&E2&\"+County%2C+\"&E$1&\"+Register+of+Deeds&ia=web\",E2&\" County\")","v":"Autauga County"},"Alachua",{"$f":"HYPERLINK(\"https://duckduckgo.com/?q=\"&G2&\"+County%2C+\"&G$1&\"+Register+of+Deeds&ia=web\",G2&\" County\")","v":"Alachua County"},"Adair",{"$f":"HYPERLINK(\"https://duckduckgo.com/?q=\"&I2&\"+County%2C+\"&I$1&\"+Register+of+Deeds&ia=web\",I2&\" County\")","v":"Adair County"},"Adams",{"$f":"HYPERLINK(\"https://duckduckgo.com/?q=\"&K2&\"+County%2C+\"&K$1&\"+Register+of+Deeds&ia=web\",K2&\" County\")","v":"Adams County"},"Acadia",{"$f":"HYPERLINK(\"https://duckduckgo.com/?q=\"&M2&\"+Parish%2C+\"&M$1&\"+Register+of+Deeds&ia=web\",M2&\" Parish\")","v":"Acadia Parish"},"Anderson",{"$f":"HYPERLINK(\"https://duckduckgo.com/?q=\"&O2&\"+County%2C+\"&O$1&\"+Register+of+Deeds&ia=web\",O2&\" County\")","v":"Anderson County"},"Alamance",{"$f":"HYPERLINK(\"https://duckduckgo.com/?q=\"&Q2&\"+County%2C+\"&Q$1&\"+Register+of+Deeds&ia=web\",Q2&\" County\")","v":"Alamance County"},"Abbeville",{"$f":"HYPERLINK(\"https://duckduckgo.com/?q=\"&S2&\"+County%2C+\"&S$1&\"+Register+of+Deeds&ia=web\",S2&\" County\")","v":"Abbeville County"},null,null,"Accomack",{"$f":"HYPERLINK(\"https://duckduckgo.com/?q=\"&W2&\"+County%2C+\"&W$1&\"+Register+of+Deeds&ia=web\",W2&\" County\")","v":"Accomack County"},"Arkansas",{"$f":"HYPERLINK(\"https://duckduckgo.com/?q=\"&Y2&\"+County%2C+\"&Y$1&\"+Register+of+Deeds&ia=web\",Y2&\" County\")","v":"Arkansas County"},"Adair",{"$f":"HYPERLINK(\"https://duckduckgo.com/?q=\"&AA2&\"+County%2C+\"&AA$1&\"+Register+of+Deeds&ia=web\",AA2&\" County\")","v":"Adair County"}]
["Bedford",{"$f":"HYPERLINK(\"https://duckduckgo.com/?q=\"&A3&\"+County%2C+\"&A$1&\"+Register+of+Deeds&ia=web\",A3&\" County\")","v":"Bedford County"},"Atkinson",{"$f":"HYPERLINK(\"https://duckduckgo.com/?q=\"&C3&\"+County%2C+\"&C$1&\"+Register+of+Deeds&ia=web\",C3&\" County\")","v":"Atkinson County"},"Baldwin",{"$f":"HYPERLINK(\"https://duckduckgo.com/?q=\"&E3&\"+County%2C+\"&E$1&\"+Register+of+Deeds&ia=web\",E3&\" County\")","v":"Baldwin County"},"Baker",{"$f":"HYPERLINK(\"https://duckduckgo.com/?q=\"&G3&\"+County%2C+\"&G$1&\"+Register+of+Deeds&ia=web\",G3&\" County\")","v":"Baker County"},"Allen",{"$f":"HYPERLINK(\"https://duckduckgo.com/?q=\"&I3&\"+County%2C+\"&I$1&\"+Register+of+Deeds&ia=web\",I3&\" County\")","v":"Allen County"},"Alcorn",{"$f":"HYPERLINK(\"https://duckduckgo.com/?q=\"&K3&\"+County%2C+\"&K$1&\"+Register+of+Deeds&ia=web\",K3&\" County\")","v":"Alcorn County"},"Allen","Allen Parish","Andrews",{"$f":"HYPERLINK(\"https://duckduckgo.com/?q=\"&O3&\"+County%2C+\"&O$1&\"+Register+of+Deeds&ia=web\",O3&\" County\")","v":"Andrews County"},"Alexander",{"$f":"HYPERLINK(\"https://duckduckgo.com/?q=\"&Q3&\"+County%2C+\"&Q$1&\"+Register+of+Deeds&ia=web\",Q3&\" County\")","v":"Alexander County"},"Aiken",{"$f":"HYPERLINK(\"https://duckduckgo.com/?q=\"&S3&\"+County%2C+\"&S$1&\"+Register+of+Deeds&ia=web\",S3&\" County\")","v":"Aiken County"},"Barbour",{"$f":"HYPERLINK(\"https://duckduckgo.com/?q=\"&U3&\"+County%2C+\"&U$1&\"+Register+of+Deeds&ia=web\",U3&\" County\")","v":"Barbour County"},"Albemarle",{"$f":"HYPERLINK(\"https://duckduckgo.com/?q=\"&W3&\"+County%2C+\"&W$1&\"+Register+of+Deeds&ia=web\",W3&\" County\")","v":"Albemarle County"},"Ashley",{"$f":"HYPERLINK(\"https://duckduckgo.com/?q=\"&Y3&\"+County%2C+\"&Y$1&\"+Register+of+Deeds&ia=web\",Y3&\" County\")","v":"Ashley County"},"Alfalfa",{"$f":"HYPERLINK(\"https://duckduckgo.com/?q=\"&AA3&\"+County%2C+\"&AA$1&\"+Register+of+Deeds&ia=web\",AA3&\" County\")","v":"Alfalfa County"}]
["Benton","Benton County","Bacon","Bacon County","Barbour","Barbour County","Bay","Bay County","Anderson","Anderson County","Amite","Amite County","Ascension","Ascension Parish","Angelina","Angelina County","Alleghany","Alleghany County","Allendale","Allendale County","Berkeley",{"$f":"HYPERLINK(\"https://duckduckgo.com/?q=\"&U4&\"+County%2C+\"&U$1&\"+Register+of+Deeds&ia=web\",U4&\" County\")","v":"Berkeley County"},"Alexandria","Alexandria County","Baxter","Baxter County","Atoka","Atoka County"]
["Bledsoe","Bledsoe County","Baker","Baker County","Bibb","Bibb County","Bradford","Bradford County","Ballard","Ballard County","Attala","Attala County","Assumption","Assumption Parish","Aransas","Aransas County","Anson","Anson County","Anderson","Anderson County","Boone","Boone County","Alleghany","Alleghany County","Benton","Benton County","Beaver","Beaver County"]
["Blount","Blount County","Baldwin","Baldwin County","Blount","Blount County","Brevard","Brevard County","Barren","Barren County","Benton","Benton County","Avoyelles","Avoyelles Parish","Archer","Archer County","Ashe","Ashe County","Bamberg","Bamberg County","Braxton","Braxton County","Amelia","Amelia County","Boone","Boone County","Beckham","Beckham County"]
["Bradley","Bradley County","Banks","Banks County","Bullock","Bullock County","Broward","Broward County","Bath","Bath County","Bolivar","Bolivar County","Beauregard","Beauregard Parish","Armstrong","Armstrong County","Avery","Avery County","Barnwell","Barnwell County","Brooke","Brooke County","Amherst","Amherst County","Bradley","Bradley County","Blaine","Blaine County"]
["Campbell",{"$f":"HYPERLINK(\"https://duckduckgo.com/?q=\"&A8&\"+County%2C+\"&A$1&\"+Register+of+Deeds&ia=web\",A8&\" County\")","v":"Campbell County"},"Barrow","Barrow County","Butler","Butler County","Calhoun","Calhoun County","Bell","Bell County","Calhoun","Calhoun County","Bienville","Bienville Parish","Atascosa","Atascosa County","Beaufort","Beaufort County","Beaufort","Beaufort County","Cabell","Cabell County","Appomattox","Appomattox County","Calhoun","Calhoun County","Bryan","Bryan County"]
["Cannon","Cannon County","Bartow","Bartow County","Calhoun","Calhoun County","Charlotte","Charlotte County","Boone","Boone County","Carroll","Carroll County","Bossier","Bossier Parish","Austin","Austin County","Bertie","Bertie County","Berkeley","Berkeley County","Calhoun","Calhoun County","Arlington","Arlington County","Carroll","Carroll County","Caddo","Caddo County"]
["Carroll","Carroll County","Ben Hill","Ben Hill County","Chambers","Chambers County","Citrus","Citrus County","Bourbon","Bourbon County","Chickasaw","Chickasaw County","Caddo","Caddo Parish","Bailey","Bailey County","Bladen","Bladen County","Calhoun","Calhoun County","Clay","Clay County","Augusta","Augusta County","Chicot","Chicot County","Canadian","Canadian County"]
["Carter","Carter County","Berrien","Berrien County","Cherokee","Cherokee County","Clay","Clay County","Boyd","Boyd County","Choctaw","Choctaw County","Calcasieu","Calcasieu Parish","Bandera","Bandera County","Brunswick","Brunswick County","Charleston","Charleston County","Doddridge","Doddridge County","Bath","Bath County","Clark","Clark County","Carter","Carter County"]
["Cheatham","Cheatham County","Bibb","Bibb County","Chilton","Chilton County","Collier","Collier County","Boyle","Boyle County","Claiborne","Claiborne County","Caldwell","Caldwell Parish","Bastrop","Bastrop County","Buncombe","Buncombe County","Cherokee","Cherokee County","Fayette","Fayette County","Bedford","Bedford County","Clay","Clay County","Cherokee","Cherokee County"]
["Chester","Chester County","Bleckley","Bleckley County","Choctaw","Choctaw County","Columbia","Columbia County","Bracken","Bracken County","Clarke","Clarke County","Cameron","Cameron Parish","Baylor","Baylor County","Burke","Burke County","Chester","Chester County","Gilmer","Gilmer County","Bland","Bland County","Cleburne","Cleburne County","Choctaw","Choctaw County"]
["Claiborne","Claiborne County","Brantley","Brantley County","Clarke","Clarke County","DeSoto","DeSoto County","Breathitt","Breathitt County","Clay","Clay County","Catahoula","Catahoula Parish","Bee","Bee County","Cabarrus","Cabarrus County","Chesterfield","Chesterfield County","Grant","Grant County","Botetourt","Botetourt County","Cleveland","Cleveland County","Cimarron","Cimarron County"]
["Clay","Clay County","Brooks","Brooks County","Clay","Clay County","Dixie","Dixie County","Breckinridge","Breckinridge County","Coahoma","Coahoma County","Claiborne","Claiborne Parish","Bell","Bell County","Caldwell","Caldwell County","Clarendon","Clarendon County","Greenbrier","Greenbrier County","Bristol","Bristol County","Columbia","Columbia County","Cleveland","Cleveland County"]
["Cocke","Cocke County","Bryan","Bryan County","Cleburne","Cleburne County","Duval","Duval County","Bullitt","Bullitt County","Copiah","Copiah County","Concordia","Concordia Parish","Bexar","Bexar County","Camden","Camden County","Colleton","Colleton County","Hampshire","Hampshire County","Brunswick","Brunswick County","Conway","Conway County","Coal","Coal County"]
["Coffee","Coffee County","Bulloch","Bulloch County","Coffee","Coffee County","Escambia","Escambia County","Butler","Butler County","Covington","Covington County","DeSoto","DeSoto Parish","Blanco","Blanco County","Carteret","Carteret County","Darlington","Darlington County","Hancock","Hancock County","Buchanan","Buchanan County","Craighead","Craighead County","Comanche","Comanche County"]
["Crockett","Crockett County","Burke","Burke County","Colbert","Colbert County","Flagler","Flagler County","Caldwell","Caldwell County","DeSoto","DeSoto County","East Baton Rouge","East Baton Rouge Parish","Borden","Borden County","Caswell","Caswell County","Dillon","Dillon County","Hardy","Hardy County","Buckingham","Buckingham County","Crawford","Crawford County","Cotton","Cotton County"]
["Cumberland","Cumberland County","Butts","Butts County","Conecuh","Conecuh County","Franklin","Franklin County","Calloway","Calloway County","Forrest","Forrest County","East Carroll","East Carroll Parish","Bosque","Bosque County","Catawba","Catawba County","Dorchester","Dorchester County","Harrison","Harrison County","Buena Vista","Buena Vista County","Crittenden","Crittenden County","Craig","Craig County"]
["Davidson","Davidson County","Calhoun",{"$f":"HYPERLINK(\"https://duckduckgo.com/?q=\"&C20&\"+County%2C+\"&C$1&\"+Register+of+Deeds&ia=web\",C20&\" County\")","v":"Calhoun County"},"Coosa","Coosa County","Gadsden","Gadsden County","Campbell","Campbell County","Franklin","Franklin County","East Feliciana","East Feliciana Parish","Bowie","Bowie County","Chatham","Chatham County","Edgefield","Edgefield County","Jackson","Jackson County","Campbell","Campbell County","Cross","Cross County","Creek","Creek County"]
["Decatur","Decatur County","Camden","Camden County","Covington","Covington County","Gilchrist","Gilchrist County","Carlisle","Carlisle County","George","George County","Evangeline","Evangeline Parish","Brazoria","Brazoria County","Cherokee","Cherokee County","Fairfield","Fairfield County","Jefferson","Jefferson County","Caroline","Caroline County","Dallas","Dallas County","Custer","Custer County"]
["DeKalb","DeKalb County","Candler","Candler County","Crenshaw","Crenshaw County","Glades","Glades County","Carroll","Carroll County","Greene","Greene County","Franklin","Franklin Parish","Brazos","Brazos County","Chowan","Chowan County","Florence","Florence County","Kanawha","Kanawha County","Carroll","Carroll County","Desha","Desha County","Delaware","Delaware County"]
["Dickson","Dickson County","Carroll","Carroll County","Cullman","Cullman County","Gulf","Gulf County","Carter","Carter County","Grenada","Grenada County","Grant","Grant Parish","Brewster","Brewster County","Clay","Clay County","Georgetown","Georgetown County","Lewis","Lewis County","Charles City","Charles City County","Drew","Drew County","Dewey","Dewey County"]
["Dyer","Dyer County","Catoosa","Catoosa County","Dale","Dale County","Hamilton","Hamilton County","Casey","Casey County","Hancock","Hancock County","Iberia","Iberia Parish","Briscoe","Briscoe County","Cleveland","Cleveland County","Greenville","Greenville County","Lincoln","Lincoln County","Charlotte","Charlotte County","Faulkner","Faulkner County","Ellis","Ellis County"]
["Fayette","Fayette County","Charlton","Charlton County","Dallas","Dallas County","Hardee","Hardee County","Christian","Christian County","Harrison","Harrison County","Iberville","Iberville Parish","Brooks","Brooks County","Columbus","Columbus County","Greenwood","Greenwood County","Logan","Logan County","Charlottesville","Charlottesville County","Franklin","Franklin County","Garfield","Garfield County"]
["Fentress","Fentress County","Chatham","Chatham County","DeKalb","DeKalb County","Hendry","Hendry County","Clark","Clark County","Hinds","Hinds County","Jackson","Jackson Parish","Brown","Brown County","Craven","Craven County","Hampton","Hampton County","Marion","Marion County","Chesapeake","Chesapeake County","Fulton","Fulton County","Garvin","Garvin County"]
["Franklin","Franklin County","Chattahoochee","Chattahoochee County","Elmore","Elmore County","Hernando","Hernando County","Clay","Clay County","Holmes","Holmes County","Jefferson Davis","Jefferson Davis Parish","Burleson","Burleson County","Cumberland","Cumberland County","Horry","Horry County","Marshall","Marshall County","Chesterfield","Chesterfield County","Garland","Garland County","Grady","Grady County"]
["Gibson","Gibson County","Chattooga","Chattooga County","Escambia","Escambia County","Highlands","Highlands County","Clinton","Clinton County","Humphreys","Humphreys County","Jefferson","Jefferson Parish","Burnet","Burnet County","Currituck","Currituck County","Jasper","Jasper County","Mason","Mason County","City","City County","Grant","Grant County","Grant","Grant County"]
["Giles","Giles County","Cherokee","Cherokee County","Etowah","Etowah County","Hillsborough","Hillsborough County","Crittenden","Crittenden County","Issaquena","Issaquena County","Lafayette","Lafayette Parish","Caldwell","Caldwell County","Dare","Dare County","Kershaw","Kershaw County","McDowell","McDowell County","Clarke","Clarke County","Greene","Greene County","Greer","Greer County"]
["Grainger","Grainger County","Clarke","Clarke County","Fayette","Fayette County","Holmes","Holmes County","Cumberland","Cumberland County","Itawamba","Itawamba County","Lafourche","Lafourche Parish","Calhoun","Calhoun County","Davidson","Davidson County","Lancaster","Lancaster County","Mercer","Mercer County","Colonial Heights","Colonial Heights County","Hempstead","Hempstead County","Harmon","Harmon County"]
["Greene","Greene County","Clay","Clay County","Franklin","Franklin County","Indian River","Indian River County","Daviess","Daviess County","Jackson","Jackson County","LaSalle","LaSalle Parish","Callahan","Callahan County","Davie","Davie County","Laurens","Laurens County","Mineral","Mineral County","Covington","Covington County","Hot Spring","Hot Spring County","Harper","Harper County"]
["Grundy","Grundy County","Clayton","Clayton County","Geneva","Geneva County","Jackson","Jackson County","Edmonson","Edmonson County","Jasper","Jasper County","Lincoln","Lincoln Parish","Cameron","Cameron County","Duplin","Duplin County","Lee","Lee County","Mingo","Mingo County","Craig","Craig County","Howard","Howard County","Haskell","Haskell County"]
["Hamblen","Hamblen County","Clinch","Clinch County","Greene","Greene County","Jefferson","Jefferson County","Elliott","Elliott County","Jefferson","Jefferson County","Livingston","Livingston Parish","Camp","Camp County","Durham","Durham County","Lexington","Lexington County","Monongalia","Monongalia County","Culpeper","Culpeper County","Independence","Independence County","Hughes","Hughes County"]
["Hamilton","Hamilton County","Cobb","Cobb County","Hale","Hale County","Lafayette","Lafayette County","Estill","Estill County","Jefferson Davis","Jefferson Davis County","Madison",{"$f":"HYPERLINK(\"https://duckduckgo.com/?q=\"&M34&\"+Parish%2C+\"&M$1&\"+Register+of+Deeds&ia=web\",M34&\" Parish\")","v":"Madison Parish"},"Carson","Carson County","Edgecombe","Edgecombe County","Marion","Marion County","Monroe","Monroe County","Cumberland","Cumberland County","Izard","Izard County","Jackson","Jackson County"]
["Hancock","Hancock County","Coffee","Coffee County","Henry","Henry County","Lake","Lake County","Fayette","Fayette County","Jones","Jones County","Morehouse","Morehouse Parish","Cass","Cass County","Forsyth","Forsyth County","Marlboro","Marlboro County","Morgan","Morgan County","Danville","Danville County","Jackson","Jackson County","Jefferson","Jefferson County"]
["Hardeman","Hardeman County","Colquitt","Colquitt County","Houston","Houston County","Lee","Lee County","Fleming","Fleming County","Kemper","Kemper County","Natchitoches","Natchitoches Parish","Castro","Castro County","Franklin","Franklin County","McCormick","McCormick County","Nicholas","Nicholas County","Dickenson","Dickenson County","Jefferson","Jefferson County","Johnston","Johnston County"]
["Hardin","Hardin County","Columbia","Columbia County","Jackson","Jackson County","Leon","Leon County","Floyd","Floyd County","Lafayette","Lafayette County","Orleans","Orleans Parish","Chambers","Chambers County","Gaston","Gaston County","Newberry","Newberry County","Ohio","Ohio County","Dinwiddie","Dinwiddie County","Johnson","Johnson County","Kay","Kay County"]
["Hawkins","Hawkins County","Cook","Cook County","Jefferson","Jefferson County","Levy","Levy County","Franklin","Franklin County","Lamar","Lamar County","Ouachita","Ouachita Parish","Cherokee","Cherokee County","Gates","Gates County","Oconee","Oconee County","Pendleton","Pendleton County","Emporia","Emporia County","Lafayette","Lafayette County","Kingfisher","Kingfisher County"]
["Haywood","Haywood County","Coweta","Coweta County","Lamar","Lamar County","Liberty","Liberty County","Fulton","Fulton County","Lauderdale","Lauderdale County","Plaquemines","Plaquemines Parish","Childress","Childress County","Graham","Graham County","Orangeburg","Orangeburg County","Pleasants","Pleasants County","Essex","Essex County","Lawrence","Lawrence County","Kiowa","Kiowa County"]
["Henderson","Henderson County","Crawford","Crawford County","Lauderdale","Lauderdale County","Madison","Madison County","Gallatin","Gallatin County","Lawrence","Lawrence County","Pointe Coupee","Pointe Coupee Parish","Clay","Clay County","Granville","Granville County","Pickens","Pickens County","Pocahontas","Pocahontas County","Fairfax","Fairfax County","Lee","Lee County","Latimer","Latimer County"]
["Henry","Henry County","Crisp","Crisp County","Lawrence","Lawrence County","Manatee","Manatee County","Garrard","Garrard County","Leake","Leake County","Rapides","Rapides Parish","Cochran","Cochran County","Greene","Greene County","Richland","Richland County","Preston","Preston County","Fairfax","Fairfax County","Lincoln","Lincoln County","Le Flore","Le Flore County"]
["Hickman","Hickman County","Dade","Dade County","Lee","Lee County","Marion","Marion County","Grant","Grant County","Lee","Lee County","Red River","Red River Parish","Coke","Coke County","Guilford","Guilford County","Saluda","Saluda County","Putnam","Putnam County","Falls Church","Falls Church County","Little River","Little River County","Lincoln","Lincoln County"]
["Houston","Houston County","Dawson","Dawson County","Limestone","Limestone County","Martin","Martin County","Graves","Graves County","Leflore","Leflore County","Richland","Richland Parish","Coleman","Coleman County","Halifax","Halifax County","Spartanburg","Spartanburg County","Raleigh","Raleigh County","Fauquier","Fauquier County","Logan","Logan County","Logan","Logan County"]
["Humphreys","Humphreys County","Decatur","Decatur County","Lowndes","Lowndes County","Miami-Dade","Miami-Dade County","Grayson","Grayson County","Lincoln","Lincoln County","Sabine","Sabine Parish","Collin","Collin County","Harnett","Harnett County","Sumter","Sumter County","Randolph","Randolph County","Floyd","Floyd County","Lonoke","Lonoke County","Love","Love County"]
["Jackson","Jackson County","DeKalb","DeKalb County","Macon","Macon County","Monroe","Monroe County","Green","Green County","Lowndes","Lowndes County","St. Bernard","St. Bernard Parish","Collingsworth","Collingsworth County","Haywood","Haywood County","Union","Union County","Ritchie","Ritchie County","Fluvanna","Fluvanna County","Madison","Madison County","Major","Major County"]
["Jefferson","Jefferson County","Dodge","Dodge County","Madison","Madison County","Nassau","Nassau County","Greenup","Greenup County","Madison","Madison County","St. Charles","St. Charles Parish","Colorado","Colorado County","Henderson","Henderson County","Williamsburg","Williamsburg County","Roane","Roane County","Franklin","Franklin County","Marion","Marion County","Marshall","Marshall County"]
["Johnson","Johnson County","Dooly","Dooly County","Marengo","Marengo County","Okaloosa","Okaloosa County","Hancock","Hancock County","Marion","Marion County","St. Helena","St. Helena Parish","Comal","Comal County","Hertford","Hertford County","York","York County","Summers","Summers County","Franklin","Franklin County","Miller","Miller County","Mayes","Mayes County"]
["K","K County","Dougherty","Dougherty County","Marion","Marion County","Okeechobee","Okeechobee County","Hardin","Hardin County","Marshall","Marshall County","St. James","St. James Parish","Comanche","Comanche County","Hoke","Hoke County",null," County","Taylor","Taylor County","Frederick","Frederick County","Mississippi","Mississippi County","McClain","McClain County"]
["Lake","Lake County","Douglas","Douglas County","Marshall","Marshall County","Orange","Orange County","Harlan","Harlan County","Monroe","Monroe County","St. John the Baptist","St. John the Baptist Parish","Concho","Concho County","Hyde","Hyde County",null," County","Tucker","Tucker County","Fredericksburg","Fredericksburg County","Monroe","Monroe County","McCurtain","McCurtain County"]
["Lauderdale","Lauderdale County","Early","Early County","Mobile","Mobile County","Osceola","Osceola County","Harrison","Harrison County","Montgomery","Montgomery County","St. Landry","St. Landry Parish","Cooke","Cooke County","Iredell","Iredell County",null," County","Tyler","Tyler County","Galax","Galax County","Montgomery","Montgomery County","McIntosh","McIntosh County"]
["Lawrence","Lawrence County","Echols","Echols County","Monroe","Monroe County","Palm Beach","Palm Beach County","Hart","Hart County","Neshoba","Neshoba County","St. Martin","St. Martin Parish","Coryell","Coryell County","Jackson","Jackson County",null," County","Upshur","Upshur County","Giles","Giles County","Nevada","Nevada County","Murray","Murray County"]
["Lewis","Lewis County","Effingham","Effingham County","Montgomery","Montgomery County","Pasco","Pasco County","Henderson","Henderson County","Newton","Newton County","St. Mary","St. Mary Parish","Cottle","Cottle County","Johnston","Johnston County",null," County","Wayne","Wayne County","Gloucester","Gloucester County","Newton","Newton County","Muskogee","Muskogee County"]
["Lincoln","Lincoln County","Elbert","Elbert County","Morgan","Morgan County","Pinellas","Pinellas County","Henry","Henry County","Noxubee","Noxubee County","St. Tammany","St. Tammany Parish","Crane","Crane County","Jones","Jones County",null," County","Webster","Webster County","Goochland","Goochland County","Ouachita","Ouachita County","Noble","Noble County"]
["Loudon","Loudon County","Emanuel","Emanuel County","Perry","Perry County","Polk","Polk County","Hickman","Hickman County","Oktibbeha","Oktibbeha County","Tangipahoa","Tangipahoa Parish","Crockett","Crockett County","Lee","Lee County",null," County","Wetzel","Wetzel County","Grayson","Grayson County","Perry","Perry County","Nowata","Nowata County"]
["Macon","Macon County","Evans","Evans County","Pickens","Pickens County","Putnam","Putnam County","Hopkins","Hopkins County","Panola","Panola County","Tensas","Tensas Parish","Crosby","Crosby County","Lenoir","Lenoir County",null," County","Wirt","Wirt County","Greene","Greene County","Phillips","Phillips County","Okfuskee","Okfuskee County"]
["Madison","Madison County","Fannin","Fannin County","Pike","Pike County","Santa Rosa","Santa Rosa County","Jackson","Jackson County","Pearl River","Pearl River County","Terrebonne","Terrebonne Parish","Culberson","Culberson County","Lincoln","Lincoln County",null," County","Wood","Wood County","Greensville","Greensville County","Pike","Pike County","Oklahoma","Oklahoma County"]
["Marion","Marion County","Fayette","Fayette County","Randolph","Randolph County","Sarasota","Sarasota County","Jefferson","Jefferson County","Perry","Perry County","Union","Union Parish","Dallam","Dallam County","Macon","Macon County",null," County","Wyoming","Wyoming County","Halifax","Halifax County","Poinsett","Poinsett County","Okmulgee","Okmulgee County"]
["Marshall","Marshall County","Floyd","Floyd County","Russell","Russell County","Seminole","Seminole County","Jessamine","Jessamine County","Pike","Pike County","Vermilion","Vermilion Parish","Dallas","Dallas County","Madison","Madison County",null," County",null," County","Hampton","Hampton County","Polk","Polk County","Osage","Osage County"]
["Maury","Maury County","Forsyth","Forsyth County","Shelby","Shelby County","St. Johns","St. Johns County","Johnson","Johnson County","Pontotoc","Pontotoc County","Vernon","Vernon Parish","Dawson","Dawson County","Martin","Martin County",null," County",null," County","Hanover","Hanover County","Pope","Pope County","Ottawa","Ottawa County"]
["McMinn","McMinn County","Franklin","Franklin County","St. Clair","St. Clair County","St. Lucie","St. Lucie County","Kenton","Kenton County","Prentiss","Prentiss County","Washington","Washington Parish","Deaf Smith","Deaf Smith County","McDowell","McDowell County",null," County",null," County","Harrisonburg","Harrisonburg County","Prairie","Prairie County","Pawnee","Pawnee County"]
["McNairy","McNairy County","Fulton","Fulton County","Sumter","Sumter County","Sumter","Sumter County","Knott","Knott County","Quitman","Quitman County","Webster","Webster Parish","Delta","Delta County","Mecklenburg","Mecklenburg County",null," County",null," County","Henrico","Henrico County","Pulaski","Pulaski County","Payne","Payne County"]
["Meigs","Meigs County","Gilmer","Gilmer County","Talladega","Talladega County","Suwannee","Suwannee County","Knox","Knox County","Rankin","Rankin County","West Baton Rouge","West Baton Rouge Parish","Denton","Denton County","Mitchell","Mitchell County",null," County",null," County","Henry","Henry County","Randolph","Randolph County","Pittsburg","Pittsburg County"]
["Monroe","Monroe County","Glascock","Glascock County","Tallapoosa","Tallapoosa County","Taylor","Taylor County","LaRue","LaRue County","Scott","Scott County","West Carroll","West Carroll Parish","DeWitt","DeWitt County","Montgomery","Montgomery County",null," County",null," County","Highland","Highland County","Saline","Saline County","Pontotoc","Pontotoc County"]
["Montgomery","Montgomery County","Glynn","Glynn County","Tuscaloosa","Tuscaloosa County","Union","Union County","Laurel","Laurel County","Sharkey","Sharkey County","West Feliciana","West Feliciana Parish","Dickens","Dickens County","Moore","Moore County",null," County",null," County","Hopewell","Hopewell County","Scott","Scott County","Pottawatomie","Pottawatomie County"]
["Moore","Moore County","Gordon","Gordon County","Walker","Walker County","Volusia","Volusia County","Lawrence","Lawrence County","Simpson","Simpson County","Winn","Winn Parish","Dimmit","Dimmit County","Nash","Nash County",null," County",null," County","Isle of Wight","Isle of Wight County","Searcy","Searcy County","Pushmataha","Pushmataha County"]
["Morgan","Morgan County","Grady","Grady County","Washington","Washington County","Wakulla","Wakulla County","Lee","Lee County","Smith","Smith County",null,null,"Donley","Donley County","New Hanover","New Hanover County",null," County",null," County","James City","James City County","Sebastian","Sebastian County","Roger Mills","Roger Mills County"]
["Obion",{"$f":"HYPERLINK(\"https://duckduckgo.com/?q=\"&A67&\"+County%2C+\"&A$1&\"+Register+of+Deeds&ia=web\",A67&\" County\")","v":"Obion County"},"Greene",{"$f":"HYPERLINK(\"https://duckduckgo.com/?q=\"&C67&\"+County%2C+\"&C$1&\"+Register+of+Deeds&ia=web\",C67&\" County\")","v":"Greene County"},"Wilcox",{"$f":"HYPERLINK(\"https://duckduckgo.com/?q=\"&E67&\"+County%2C+\"&E$1&\"+Register+of+Deeds&ia=web\",E67&\" County\")","v":"Wilcox County"},"Walton",{"$f":"HYPERLINK(\"https://duckduckgo.com/?q=\"&G67&\"+County%2C+\"&G$1&\"+Register+of+Deeds&ia=web\",G67&\" County\")","v":"Walton County"},"Leslie",{"$f":"HYPERLINK(\"https://duckduckgo.com/?q=\"&I67&\"+County%2C+\"&I$1&\"+Register+of+Deeds&ia=web\",I67&\" County\")","v":"Leslie County"},"Stone",{"$f":"HYPERLINK(\"https://duckduckgo.com/?q=\"&K67&\"+County%2C+\"&K$1&\"+Register+of+Deeds&ia=web\",K67&\" County\")","v":"Stone County"},null,null,"Duval",{"$f":"HYPERLINK(\"https://duckduckgo.com/?q=\"&O67&\"+County%2C+\"&O$1&\"+Register+of+Deeds&ia=web\",O67&\" County\")","v":"Duval County"},"Northampton",{"$f":"HYPERLINK(\"https://duckduckgo.com/?q=\"&Q67&\"+County%2C+\"&Q$1&\"+Register+of+Deeds&ia=web\",Q67&\" County\")","v":"Northampton County"},null,{"$f":"HYPERLINK(\"https://duckduckgo.com/?q=\"&S67&\"+County%2C+\"&S$1&\"+Register+of+Deeds&ia=web\",S67&\" County\")","v":" County"},null," County","King and Queen",{"$f":"HYPERLINK(\"https://duckduckgo.com/?q=\"&W67&\"+County%2C+\"&W$1&\"+Register+of+Deeds&ia=web\",W67&\" County\")","v":"King and Queen County"},"Sevier",{"$f":"HYPERLINK(\"https://duckduckgo.com/?q=\"&Y67&\"+County%2C+\"&Y$1&\"+Register+of+Deeds&ia=web\",Y67&\" County\")","v":"Sevier County"},"Rogers",{"$f":"HYPERLINK(\"https://duckduckgo.com/?q=\"&AA67&\"+County%2C+\"&AA$1&\"+Register+of+Deeds&ia=web\",AA67&\" County\")","v":"Rogers County"}]
["Overton","Overton County","Gwinnett","Gwinnett County","Winston",{"$f":"HYPERLINK(\"https://duckduckgo.com/?q=\"&E68&\"+County%2C+\"&E$1&\"+Register+of+Deeds&ia=web\",E68&\" County\")","v":"Winston County"},"Washington",{"$f":"HYPERLINK(\"https://duckduckgo.com/?q=\"&G68&\"+County%2C+\"&G$1&\"+Register+of+Deeds&ia=web\",G68&\" County\")","v":"Washington County"},"Letcher","Letcher County","Sunflower","Sunflower County",null,null,"Eastland","Eastland County","Onslow","Onslow County",null," County",null,{"$f":"HYPERLINK(\"https://duckduckgo.com/?q=\"&U68&\"+County%2C+\"&U$1&\"+Register+of+Deeds&ia=web\",U68&\" County\")","v":" County"},"King George","King George County","Sharp","Sharp County","Seminole","Seminole County"]
["Perry","Perry County","Habersham","Habersham County",null,null,null,null,"Lewis","Lewis County","Tallahatchie","Tallahatchie County",null,null,"Ector","Ector County","Orange","Orange County",null," County",null," County","King William","King William County","St. Francis","St. Francis County","Sequoyah","Sequoyah County"]
["Pickett","Pickett County","Hall","Hall County",null,null,null,null,"Lincoln","Lincoln County","Tate","Tate County",null,null,"Edwards","Edwards County","Pamlico","Pamlico County",null," County",null," County","Lancaster","Lancaster County","Stone","Stone County","Stephens","Stephens County"]
["Polk","Polk County","Hancock","Hancock County",null,null,null,null,"Livingston","Livingston County","Tippah","Tippah County",null,null,"El Paso","El Paso County","Pasquotank","Pasquotank County",null," County",null," County","Lee","Lee County","Union","Union County","Texas","Texas County"]
["Putnam","Putnam County","Haralson","Haralson County",null,null,null,null,"Logan","Logan County","Tishomingo","Tishomingo County",null,null,"Ellis","Ellis County","Pender","Pender County",null," County",null," County","Lexington","Lexington County","Van Buren","Van Buren County","Tillman","Tillman County"]
["Rhea","Rhea County","Harris","Harris County",null,null,null,null,"Lyon","Lyon County","Tunica","Tunica County",null,null,"Erath","Erath County","Perquimans","Perquimans County",null," County",null," County","List of independent cities[edit]","List of independent cities[edit] County","Washington","Washington County","Tulsa","Tulsa County"]
["Roane","Roane County","Hart","Hart County",null,null,null,null,"Madison","Madison County","Union","Union County",null,null,"Falls","Falls County","Person","Person County",null," County",null," County","Loudoun","Loudoun County","White","White County","Wagoner","Wagoner County"]
["Robertson","Robertson County","Heard","Heard County",null,null,null,null,"Magoffin","Magoffin County","Walthall","Walthall County",null,null,"Fannin","Fannin County","Pitt","Pitt County",null," County",null," County","Louisa","Louisa County","Woodruff","Woodruff County","Washington","Washington County"]
["Rutherford","Rutherford County","Henry","Henry County",null,null,null,null,"Marion","Marion County","Warren","Warren County",null,null,"Fayette","Fayette County","Polk","Polk County",null," County",null," County","Lunenburg","Lunenburg County","Yell","Yell County","Washita","Washita County"]
["Scott","Scott County","Houston","Houston County",null,null,null,null,"Marshall","Marshall County","Washington","Washington County",null,null,"Fisher","Fisher County","Randolph","Randolph County",null," County",null," County","Lynchburg","Lynchburg County",null," County","Woods","Woods County"]
["Sequatchie","Sequatchie County","Irwin","Irwin County",null,null,null,null,"Martin","Martin County","Wayne","Wayne County",null,null,"Floyd","Floyd County","Richmond","Richmond County",null," County",null," County","Madison","Madison County",null," County","Woodward","Woodward County"]
["Sevier","Sevier County","Jackson","Jackson County",null,null,null,null,"Mason","Mason County","Webster","Webster County",null,null,"Foard","Foard County","Robeson","Robeson County",null," County",null," County","Manassas","Manassas County",null," County",null," County"]
["Shelby","Shelby County","Jasper","Jasper County",null,null,null,null,"McCracken","McCracken County","Wilkinson","Wilkinson County",null,null,"Fort Bend","Fort Bend County","Rockingham","Rockingham County",null," County",null," County","Manassas Park","Manassas Park County",null," County",null," County"]
["Smith","Smith County","Jeff Davis","Jeff Davis County",null,null,null,null,"McCreary","McCreary County","Winston","Winston County",null,null,"Franklin","Franklin County","Rowan","Rowan County",null," County",null," County","Martinsville","Martinsville County",null," County",null," County"]
["Stewart","Stewart County","Jefferson","Jefferson County",null,null,null,null,"McLean","McLean County","Yalobusha","Yalobusha County",null,null,"Freestone","Freestone County","Rutherford","Rutherford County",null," County",null," County","Mathews","Mathews County",null," County",null," County"]
["Sullivan","Sullivan County","Jenkins","Jenkins County",null,null,null,null,"Meade","Meade County","Yazoo","Yazoo County",null,null,"Frio","Frio County","Sampson","Sampson County",null," County",null," County","Mecklenburg","Mecklenburg County",null," County",null," County"]
["Sumner","Sumner County","Johnson","Johnson County",null,null,null,null,"Menifee","Menifee County",null,null,null,null,"Gaines","Gaines County","Scotland","Scotland County",null," County",null," County","Middlesex","Middlesex County",null," County",null," County"]
["Tipton","Tipton County","Jones","Jones County",null,null,null,null,"Mercer","Mercer County",null,null,null,null,"Galveston","Galveston County","Stanly","Stanly County",null," County",null," County","Montgomery","Montgomery County",null," County",null," County"]
["Trousdale","Trousdale County","Lamar","Lamar County",null,null,null,null,"Metcalfe","Metcalfe County",null,null,null,null,"Garza","Garza County","Stokes","Stokes County",null," County",null," County","Nelson","Nelson County",null," County",null," County"]
["Unicoi","Unicoi County","Lanier","Lanier County",null,null,null,null,"Monroe","Monroe County",null,null,null,null,"Gillespie","Gillespie County","Surry","Surry County",null," County",null," County","New Kent","New Kent County",null," County",null," County"]
["Union","Union County","Laurens","Laurens County",null,null,null,null,"Montgomery","Montgomery County",null,null,null,null,"Glasscock","Glasscock County","Swain","Swain County",null," County",null," County","Newport News","Newport News County",null," County",null," County"]
["Van Buren","Van Buren County","Lee","Lee County",null,null,null,null,"Morgan","Morgan County",null,null,null,null,"Goliad","Goliad County","Transylvania","Transylvania County",null," County",null," County","Norfolk","Norfolk County",null," County",null," County"]
["Warren","Warren County","Liberty","Liberty County",null,null,null,null,"Muhlenberg","Muhlenberg County",null,null,null,null,"Gonzales","Gonzales County","Tyrrell","Tyrrell County",null," County",null," County","Northampton","Northampton County",null," County",null," County"]
["Washington","Washington County","Lincoln","Lincoln County",null,null,null,null,"Nelson","Nelson County",null,null,null,null,"Gray","Gray County","Union","Union County",null," County",null," County","Northumberland","Northumberland County",null," County",null," County"]
["Wayne","Wayne County","Long","Long County",null,null,null,null,"Nicholas","Nicholas County",null,null,null,null,"Grayson","Grayson County","Vance","Vance County",null," County",null," County","Norton","Norton County",null," County",null," County"]
["Weakley","Weakley County","Lowndes","Lowndes County",null,null,null,null,"Ohio","Ohio County",null,null,null,null,"Gregg","Gregg County","Wake","Wake County",null," County",null," County","Nottoway","Nottoway County",null," County",null," County"]
["White","White County","Lumpkin","Lumpkin County",null,null,null,null,"Oldham","Oldham County",null,null,null,null,"Grimes","Grimes County","Warren","Warren County",null," County",null," County","Orange","Orange County",null," County",null," County"]
["Williamson","Williamson County","Macon","Macon County",null,null,null,null,"Owen","Owen County",null,null,null,null,"Guadalupe","Guadalupe County","Washington","Washington County",null," County",null," County","Page","Page County",null," County",null," County"]
["Wilson","Wilson County","Madison","Madison County",null,null,null,null,"Owsley","Owsley County",null,null,null,null,"Hale","Hale County","Watauga","Watauga County",null," County",null," County","Patrick","Patrick County",null," County",null," County"]
[null,null,"Marion","Marion County",null,null,null,null,"Pendleton","Pendleton County",null,null,null,null,"Hall","Hall County","Wayne","Wayne County",null," County",null," County","Petersburg","Petersburg County",null," County",null," County"]
[null,null,"McDuffie","McDuffie County",null,null,null,null,"Perry","Perry County",null,null,null,null,"Hamilton","Hamilton County","Wilkes","Wilkes County",null," County",null," County","Pittsylvania","Pittsylvania County",null," County",null," County"]
[null,null,"McIntosh","McIntosh County",null,null,null,null,"Pike","Pike County",null,null,null,null,"Hansford","Hansford County","Wilson","Wilson County",null," County",null," County","Poquoson","Poquoson County",null," County",null," County"]
[null,null,"Meriwether","Meriwether County",null,null,null,null,"Powell","Powell County",null,null,null,null,"Hardeman","Hardeman County","Yadkin","Yadkin County",null," County",null," County","Portsmouth","Portsmouth County",null," County",null," County"]
[null,null,"Miller","Miller County",null,null,null,null,"Pulaski","Pulaski County",null,null,null,null,"Hardin","Hardin County","Yancey","Yancey County",null," County",null," County","Powhatan","Powhatan County",null," County",null," County"]
[null,null,"Mitchell","Mitchell County",null,null,null,null,"Robertson","Robertson County",null,null,null,null,"Harris","Harris County",null," County",null," County",null," County","Prince Edward","Prince Edward County",null," County",null," County"]
[null,null,"Monroe","Monroe County",null,null,null,null,"Rockcastle","Rockcastle County",null,null,null,null,"Harrison","Harrison County",null," County",null," County",null," County","Prince George","Prince George County",null," County",null," County"]
[null,null,"Montgomery","Montgomery County",null,null,null,null,"Rowan","Rowan County",null,null,null,null,"Hartley","Hartley County",null," County",null," County",null," County","Prince William","Prince William County",null," County",null," County"]
[null,null,"Morgan","Morgan County",null,null,null,null,"Russell","Russell County",null,null,null,null,"Haskell","Haskell County",null," County",null," County",null," County","Pulaski","Pulaski County",null," County",null," County"]
[null,null,"Murray","Murray County",null,null,null,null,"Scott","Scott County",null,null,null,null,"Hays","Hays County",null," County",null," County",null," County","Radford","Radford County",null," County",null," County"]
[null,null,"Muscogee","Muscogee County",null,null,null,null,"Shelby","Shelby County",null,null,null,null,"Hemphill","Hemphill County",null," County",null," County",null," County","Rappahannock","Rappahannock County",null," County",null," County"]
[null,null,"Newton","Newton County",null,null,null,null,"Simpson","Simpson County",null,null,null,null,"Henderson","Henderson County",null," County",null," County",null," County","Richmond","Richmond County",null," County",null," County"]
[null,null,"Oconee","Oconee County",null,null,null,null,"Spencer","Spencer County",null,null,null,null,"Hidalgo","Hidalgo County",null," County",null," County",null," County","Richmond","Richmond County",null," County",null," County"]
[null,null,"Oglethorpe","Oglethorpe County",null,null,null,null,"Taylor","Taylor County",null,null,null,null,"Hill","Hill County",null," County",null," County",null," County","Roanoke","Roanoke County",null," County",null," County"]
[null,null,"Paulding","Paulding County",null,null,null,null,"Todd","Todd County",null,null,null,null,"Hockley","Hockley County",null," County",null," County",null," County","Roanoke","Roanoke County",null," County",null," County"]
[null,null,"Peach","Peach County",null,null,null,null,"Trigg","Trigg County",null,null,null,null,"Hood","Hood County",null," County",null," County",null," County","Rockbridge","Rockbridge County",null," County",null," County"]
[null,null,"Pickens","Pickens County",null,null,null,null,"Trimble","Trimble County",null,null,null,null,"Hopkins","Hopkins County",null," County",null," County",null," County","Rockingham","Rockingham County",null," County",null," County"]
[null,null,"Pierce","Pierce County",null,null,null,null,"Union","Union County",null,null,null,null,"Houston","Houston County",null," County",null," County",null," County","Russell","Russell County",null," County",null," County"]
[null,null,"Pike","Pike County",null,null,null,null,"Warren","Warren County",null,null,null,null,"Howard","Howard County",null," County",null," County",null," County","Salem","Salem County",null," County",null," County"]
[null,null,"Polk","Polk County",null,null,null,null,"Washington","Washington County",null,null,null,null,"Hudspeth","Hudspeth County",null," County",null," County",null," County","Scott","Scott County",null," County",null," County"]
[null,null,"Pulaski","Pulaski County",null,null,null,null,"Wayne","Wayne County",null,null,null,null,"Hunt","Hunt County",null," County",null," County",null," County","Shenandoah","Shenandoah County",null," County",null," County"]
[null,null,"Putnam","Putnam County",null,null,null,null,"Webster","Webster County",null,null,null,null,"Hutchinson","Hutchinson County",null," County",null," County",null," County","Smyth","Smyth County",null," County",null," County"]
[null,null,"Quitman","Quitman County",null,null,null,null,"Whitley","Whitley County",null,null,null,null,"Irion","Irion County",null," County",null," County",null," County","Southampton","Southampton County",null," County",null," County"]
[null,null,"Rabun","Rabun County",null,null,null,null,"Wolfe","Wolfe County",null,null,null,null,"Jack","Jack County",null," County",null," County",null," County","Spotsylvania","Spotsylvania County",null," County",null," County"]
[null,null,"Randolph","Randolph County",null,null,null,null,"Woodford","Woodford County",null,null,null,null,"Jackson","Jackson County",null," County",null," County",null," County","Stafford","Stafford County",null," County",null," County"]
[null,null,"Richmond","Richmond County",null,null,null,null,null,null,null,null,null,null,"Jasper","Jasper County",null," County",null," County",null," County","Staunton","Staunton County",null," County",null," County"]
[null,null,"Rockdale","Rockdale County",null,null,null,null,null,null,null,null,null,null,"Jeff Davis","Jeff Davis County",null," County",null," County",null," County","Suffolk","Suffolk County",null," County",null," County"]
[null,null,"Schley","Schley County",null,null,null,null,null,null,null,null,null,null,"Jefferson","Jefferson County",null," County",null," County",null," County","Surry","Surry County",null," County",null," County"]
[null,null,"Screven","Screven County",null,null,null,null,null,null,null,null,null,null,"Jim Hogg","Jim Hogg County",null," County",null," County",null," County","Sussex","Sussex County",null," County",null," County"]
[null,null,"Seminole","Seminole County",null,null,null,null,null,null,null,null,null,null,"Jim Wells","Jim Wells County",null," County",null," County",null," County","Tazewell","Tazewell County",null," County",null," County"]
[null,null,"Spalding","Spalding County",null,null,null,null,null,null,null,null,null,null,"Johnson","Johnson County",null," County",null," County",null," County","Virginia Beach","Virginia Beach County",null," County",null," County"]
[null,null,"Stephens","Stephens County",null,null,null,null,null,null,null,null,null,null,"Jones","Jones County",null," County",null," County",null," County","Warren","Warren County",null," County",null," County"]
[null,null,"Stewart","Stewart County",null,null,null,null,null,null,null,null,null,null,"Karnes","Karnes County",null," County",null," County",null," County","Washington","Washington County",null," County",null," County"]
[null,null,"Sumter","Sumter County",null,null,null,null,null,null,null,null,null,null,"Kaufman","Kaufman County",null," County",null," County",null," County","Waynesboro","Waynesboro County",null," County",null," County"]
[null,null,"Talbot",{"$f":"HYPERLINK(\"https://duckduckgo.com/?q=\"&C131&\"+County%2C+\"&C$1&\"+Register+of+Deeds&ia=web\",C131&\" County\")","v":"Talbot County"},null,null,null,null,null,null,null,null,null,null,"Kendall",{"$f":"HYPERLINK(\"https://duckduckgo.com/?q=\"&O131&\"+County%2C+\"&O$1&\"+Register+of+Deeds&ia=web\",O131&\" County\")","v":"Kendall County"},null,{"$f":"HYPERLINK(\"https://duckduckgo.com/?q=\"&Q131&\"+County%2C+\"&Q$1&\"+Register+of+Deeds&ia=web\",Q131&\" County\")","v":" County"},null,{"$f":"HYPERLINK(\"https://duckduckgo.com/?q=\"&S131&\"+County%2C+\"&S$1&\"+Register+of+Deeds&ia=web\",S131&\" County\")","v":" County"},null," County","Westmoreland",{"$f":"HYPERLINK(\"https://duckduckgo.com/?q=\"&W131&\"+County%2C+\"&W$1&\"+Register+of+Deeds&ia=web\",W131&\" County\")","v":"Westmoreland County"},null,{"$f":"HYPERLINK(\"https://duckduckgo.com/?q=\"&Y131&\"+County%2C+\"&Y$1&\"+Register+of+Deeds&ia=web\",Y131&\" County\")","v":" County"},null,{"$f":"HYPERLINK(\"https://duckduckgo.com/?q=\"&AA131&\"+County%2C+\"&AA$1&\"+Register+of+Deeds&ia=web\",AA131&\" County\")","v":" County"}]
[null,null,"Taliaferro","Taliaferro County",null,null,null,null,null,null,null,null,null,null,"Kenedy","Kenedy County",null," County",null," County",null,{"$f":"HYPERLINK(\"https://duckduckgo.com/?q=\"&U132&\"+County%2C+\"&U$1&\"+Register+of+Deeds&ia=web\",U132&\" County\")","v":" County"},"Williamsburg","Williamsburg County",null," County",null," County"]
[null,null,"Tattnall","Tattnall County",null,null,null,null,null,null,null,null,null,null,"Kent","Kent County",null," County",null," County",null," County","Winchester","Winchester County",null," County",null," County"]
[null,null,"Taylor","Taylor County",null,null,null,null,null,null,null,null,null,null,"Kerr","Kerr County",null," County",null," County",null," County","Wise","Wise County",null," County",null," County"]
[null,null,"Telfair","Telfair County",null,null,null,null,null,null,null,null,null,null,"Kimble","Kimble County",null," County",null," County",null," County","Wythe","Wythe County",null," County",null," County"]
[null,null,"Terrell","Terrell County",null,null,null,null,null,null,null,null,null,null,"King","King County",null," County",null," County",null," County","York","York County",null," County",null," County"]
[null,null,"Thomas","Thomas County",null,null,null,null,null,null,null,null,null,null,"Kinney","Kinney County",null," County",null," County",null," County",null," County",null," County",null," County"]
[null,null,"Tift","Tift County",null,null,null,null,null,null,null,null,null,null,"Kleberg","Kleberg County",null," County",null," County",null," County",null," County",null," County",null," County"]
[null,null,"Toombs","Toombs County",null,null,null,null,null,null,null,null,null,null,"Knox","Knox County",null," County",null," County",null," County",null," County",null," County",null," County"]
[null,null,"Towns","Towns County",null,null,null,null,null,null,null,null,null,null,"La Salle","La Salle County",null," County",null," County",null," County",null," County",null," County",null," County"]
[null,null,"Treutlen","Treutlen County",null,null,null,null,null,null,null,null,null,null,"Lamar","Lamar County",null," County",null," County",null," County",null," County",null," County",null," County"]
[null,null,"Troup","Troup County",null,null,null,null,null,null,null,null,null,null,"Lamb","Lamb County",null," County",null," County",null," County",null," County",null," County",null," County"]
[null,null,"Turner","Turner County",null,null,null,null,null,null,null,null,null,null,"Lampasas","Lampasas County",null," County",null," County",null," County",null," County",null," County",null," County"]
[null,null,"Twiggs","Twiggs County",null,null,null,null,null,null,null,null,null,null,"Lavaca","Lavaca County",null," County",null," County",null," County",null," County",null," County",null," County"]
[null,null,"Union","Union County",null,null,null,null,null,null,null,null,null,null,"Lee","Lee County",null," County",null," County",null," County",null," County",null," County",null," County"]
[null,null,"Upson","Upson County",null,null,null,null,null,null,null,null,null,null,"Leon","Leon County",null," County",null," County",null," County",null," County",null," County",null," County"]
[null,null,"Walker","Walker County",null,null,null,null,null,null,null,null,null,null,"Liberty","Liberty County",null," County",null," County",null," County",null," County",null," County",null," County"]
[null,null,"Walton","Walton County",null,null,null,null,null,null,null,null,null,null,"Limestone","Limestone County",null," County",null," County",null," County",null," County",null," County",null," County"]
[null,null,"Ware","Ware County",null,null,null,null,null,null,null,null,null,null,"Lipscomb","Lipscomb County",null," County",null," County",null," County",null," County",null," County",null," County"]
[null,null,"Warren","Warren County",null,null,null,null,null,null,null,null,null,null,"Live Oak","Live Oak County",null," County",null," County",null," County",null," County",null," County",null," County"]
[null,null,"Washington","Washington County",null,null,null,null,null,null,null,null,null,null,"Llano","Llano County",null," County",null," County",null," County",null," County",null," County",null," County"]
[null,null,"Wayne","Wayne County",null,null,null,null,null,null,null,null,null,null,"Loving","Loving County",null," County",null," County",null," County",null," County",null," County",null," County"]
[null,null,"Webster","Webster County",null,null,null,null,null,null,null,null,null,null,"Lubbock","Lubbock County",null," County",null," County",null," County",null," County",null," County",null," County"]
[null,null,"Wheeler","Wheeler County",null,null,null,null,null,null,null,null,null,null,"Lynn","Lynn County",null," County",null," County",null," County",null," County",null," County",null," County"]
[null,null,"White","White County",null,null,null,null,null,null,null,null,null,null,"Madison","Madison County",null," County",null," County",null," County",null," County",null," County",null," County"]
[null,null,"Whitfield","Whitfield County",null,null,null,null,null,null,null,null,null,null,"Marion","Marion County",null," County",null," County",null," County",null," County",null," County",null," County"]
[null,null,"Wilcox","Wilcox County",null,null,null,null,null,null,null,null,null,null,"Martin","Martin County",null," County",null," County",null," County",null," County",null," County",null," County"]
[null,null,"Wilkes","Wilkes County",null,null,null,null,null,null,null,null,null,null,"Mason","Mason County",null," County",null," County",null," County",null," County",null," County",null," County"]
[null,null,"Wilkinson","Wilkinson County",null,null,null,null,null,null,null,null,null,null,"Matagorda","Matagorda County",null," County",null," County",null," County",null," County",null," County",null," County"]
[null,null,"Worth","Worth County",null,null,null,null,null,null,null,null,null,null,"Maverick","Maverick County",null," County",null," County",null," County",null," County",null," County",null," County"]
[null,null,null,null,null,null,null,null,null,null,null,null,null,null,"McCulloch","McCulloch County",null," County",null," County",null," County",null," County",null," County",null," County"]
[null,null,null,null,null,null,null,null,null,null,null,null,null,null,"McLennan","McLennan County",null," County",null," County",null," County",null," County",null," County",null," County"]
[null,null,null,null,null,null,null,null,null,null,null,null,null,null,"McMullen","McMullen County",null," County",null," County",null," County",null," County",null," County",null," County"]
[null,null,null,null,null,null,null,null,null,null,null,null,null,null,"Medina","Medina County",null," County",null," County",null," County",null," County",null," County",null," County"]
[null,null,null,null,null,null,null,null,null,null,null,null,null,null,"Menard","Menard County",null," County",null," County",null," County",null," County",null," County",null," County"]
[null,null,null,null,null,null,null,null,null,null,null,null,null,null,"Midland","Midland County",null," County",null," County",null," County",null," County",null," County",null," County"]
[null,null,null,null,null,null,null,null,null,null,null,null,null,null,"Milam","Milam County",null," County",null," County",null," County",null," County",null," County",null," County"]
[null,null,null,null,null,null,null,null,null,null,null,null,null,null,"Mills","Mills County",null," County",null," County",null," County",null," County",null," County",null," County"]
[null,null,null,null,null,null,null,null,null,null,null,null,null,null,"Mitchell","Mitchell County",null," County",null," County",null," County",null," County",null," County",null," County"]
[null,null,null,null,null,null,null,null,null,null,null,null,null,null,"Montague","Montague County",null," County",null," County",null," County",null," County",null," County",null," County"]
[null,null,null,null,null,null,null,null,null,null,null,null,null,null,"Montgomery","Montgomery County",null," County",null," County",null," County",null," County",null," County",null," County"]
[null,null,null,null,null,null,null,null,null,null,null,null,null,null,"Moore","Moore County",null," County",null," County",null," County",null," County",null," County",null," County"]
[null,null,null,null,null,null,null,null,null,null,null,null,null,null,"Morris","Morris County",null," County",null," County",null," County",null," County",null," County",null," County"]
[null,null,null,null,null,null,null,null,null,null,null,null,null,null,"Motley","Motley County",null," County",null," County",null," County",null," County",null," County",null," County"]
[null,null,null,null,null,null,null,null,null,null,null,null,null,null,"Nacogdoches","Nacogdoches County",null," County",null," County",null," County",null," County",null," County",null," County"]
[null,null,null,null,null,null,null,null,null,null,null,null,null,null,"Navarro","Navarro County",null," County",null," County",null," County",null," County",null," County",null," County"]
[null,null,null,null,null,null,null,null,null,null,null,null,null,null,"Newton","Newton County",null," County",null," County",null," County",null," County",null," County",null," County"]
[null,null,null,null,null,null,null,null,null,null,null,null,null,null,"Nolan","Nolan County",null," County",null," County",null," County",null," County",null," County",null," County"]
[null,null,null,null,null,null,null,null,null,null,null,null,null,null,"Nueces","Nueces County",null," County",null," County",null," County",null," County",null," County",null," County"]
[null,null,null,null,null,null,null,null,null,null,null,null,null,null,"Ochiltree","Ochiltree County",null," County",null," County",null," County",null," County",null," County",null," County"]
[null,null,null,null,null,null,null,null,null,null,null,null,null,null,"Oldham","Oldham County",null," County",null," County",null," County",null," County",null," County",null," County"]
[null,null,null,null,null,null,null,null,null,null,null,null,null,null,"Orange","Orange County",null," County",null," County",null," County",null," County",null," County",null," County"]
[null,null,null,null,null,null,null,null,null,null,null,null,null,null,"Palo Pinto","Palo Pinto County",null," County",null," County",null," County",null," County",null," County",null," County"]
[null,null,null,null,null,null,null,null,null,null,null,null,null,null,"Panola","Panola County",null," County",null," County",null," County",null," County",null," County",null," County"]
[null,null,null,null,null,null,null,null,null,null,null,null,null,null,"Parker","Parker County",null," County",null," County",null," County",null," County",null," County",null," County"]
[null,null,null,null,null,null,null,null,null,null,null,null,null,null,"Parmer","Parmer County",null," County",null," County",null," County",null," County",null," County",null," County"]
[null,null,null,null,null,null,null,null,null,null,null,null,null,null,"Pecos","Pecos County",null," County",null," County",null," County",null," County",null," County",null," County"]
[null,null,null,null,null,null,null,null,null,null,null,null,null,null,"Polk","Polk County",null," County",null," County",null," County",null," County",null," County",null," County"]
[null,null,null,null,null,null,null,null,null,null,null,null,null,null,"Potter","Potter County",null," County",null," County",null," County",null," County",null," County",null," County"]
[null,null,null,null,null,null,null,null,null,null,null,null,null,null,"Presidio","Presidio County",null," County",null," County",null," County",null," County",null," County",null," County"]
[null,null,null,null,null,null,null,null,null,null,null,null,null,null,"Rains","Rains County",null," County",null," County",null," County",null," County",null," County",null," County"]
[null,null,null,null,null,null,null,null,null,null,null,null,null,null,"Randall","Randall County",null," County",null," County",null," County",null," County",null," County",null," County"]
[null,null,null,null,null,null,null,null,null,null,null,null,null,null,"Reagan","Reagan County",null," County",null," County",null," County",null," County",null," County",null," County"]
[null,null,null,null,null,null,null,null,null,null,null,null,null,null,"Real","Real County",null," County",null," County",null," County",null," County",null," County",null," County"]
[null,null,null,null,null,null,null,null,null,null,null,null,null,null,"Red River",{"$f":"HYPERLINK(\"https://duckduckgo.com/?q=\"&O195&\"+County%2C+\"&O$1&\"+Register+of+Deeds&ia=web\",O195&\" County\")","v":"Red River County"},null,{"$f":"HYPERLINK(\"https://duckduckgo.com/?q=\"&Q195&\"+County%2C+\"&Q$1&\"+Register+of+Deeds&ia=web\",Q195&\" County\")","v":" County"},null,{"$f":"HYPERLINK(\"https://duckduckgo.com/?q=\"&S195&\"+County%2C+\"&S$1&\"+Register+of+Deeds&ia=web\",S195&\" County\")","v":" County"},null," County",null,{"$f":"HYPERLINK(\"https://duckduckgo.com/?q=\"&W195&\"+County%2C+\"&W$1&\"+Register+of+Deeds&ia=web\",W195&\" County\")","v":" County"},null,{"$f":"HYPERLINK(\"https://duckduckgo.com/?q=\"&Y195&\"+County%2C+\"&Y$1&\"+Register+of+Deeds&ia=web\",Y195&\" County\")","v":" County"},null,{"$f":"HYPERLINK(\"https://duckduckgo.com/?q=\"&AA195&\"+County%2C+\"&AA$1&\"+Register+of+Deeds&ia=web\",AA195&\" County\")","v":" County"}]
[null,null,null,null,null,null,null,null,null,null,null,null,null,null,"Reeves","Reeves County",null," County",null," County",null,{"$f":"HYPERLINK(\"https://duckduckgo.com/?q=\"&U196&\"+County%2C+\"&U$1&\"+Register+of+Deeds&ia=web\",U196&\" County\")","v":" County"},null," County",null," County",null," County"]
[null,null,null,null,null,null,null,null,null,null,null,null,null,null,"Refugio","Refugio County",null," County",null," County",null," County",null," County",null," County",null," County"]
[null,null,null,null,null,null,null,null,null,null,null,null,null,null,"Roberts","Roberts County",null," County",null," County",null," County",null," County",null," County",null," County"]
[null,null,null,null,null,null,null,null,null,null,null,null,null,null,"Robertson","Robertson County",null," County",null," County",null," County",null," County",null," County",null," County"]
[null,null,null,null,null,null,null,null,null,null,null,null,null,null,"Rockwall","Rockwall County",null," County",null," County",null," County",null," County",null," County",null," County"]
[null,null,null,null,null,null,null,null,null,null,null,null,null,null,"Runnels","Runnels County",null," County",null," County",null," County",null," County",null," County",null," County"]
[null,null,null,null,null,null,null,null,null,null,null,null,null,null,"Rusk","Rusk County",null," County",null," County",null," County",null," County",null," County",null," County"]
[null,null,null,null,null,null,null,null,null,null,null,null,null,null,"Sabine","Sabine County",null," County",null," County",null," County",null," County",null," County",null," County"]
[null,null,null,null,null,null,null,null,null,null,null,null,null,null,"San Augustine","San Augustine County",null," County",null," County",null," County",null," County",null," County",null," County"]
[null,null,null,null,null,null,null,null,null,null,null,null,null,null,"San Jacinto","San Jacinto County",null," County",null," County",null," County",null," County",null," County",null," County"]
[null,null,null,null,null,null,null,null,null,null,null,null,null,null,"San Patricio","San Patricio County",null," County",null," County",null," County",null," County",null," County",null," County"]
[null,null,null,null,null,null,null,null,null,null,null,null,null,null,"San Saba","San Saba County",null," County",null," County",null," County",null," County",null," County",null," County"]
[null,null,null,null,null,null,null,null,null,null,null,null,null,null,"Schleicher","Schleicher County",null," County",null," County",null," County",null," County",null," County",null," County"]
[null,null,null,null,null,null,null,null,null,null,null,null,null,null,"Scurry","Scurry County",null," County",null," County",null," County",null," County",null," County",null," County"]
[null,null,null,null,null,null,null,null,null,null,null,null,null,null,"Shackelford","Shackelford County",null," County",null," County",null," County",null," County",null," County",null," County"]
[null,null,null,null,null,null,null,null,null,null,null,null,null,null,"Shelby","Shelby County",null," County",null," County",null," County",null," County",null," County",null," County"]
[null,null,null,null,null,null,null,null,null,null,null,null,null,null,"Sherman","Sherman County",null," County",null," County",null," County",null," County",null," County",null," County"]
[null,null,null,null,null,null,null,null,null,null,null,null,null,null,"Smith","Smith County",null," County",null," County",null," County",null," County",null," County",null," County"]
[null,null,null,null,null,null,null,null,null,null,null,null,null,null,"Somervell","Somervell County",null," County",null," County",null," County",null," County",null," County",null," County"]
[null,null,null,null,null,null,null,null,null,null,null,null,null,null,"Starr","Starr County",null," County",null," County",null," County",null," County",null," County",null," County"]
[null,null,null,null,null,null,null,null,null,null,null,null,null,null,"Stephens","Stephens County",null," County",null," County",null," County",null," County",null," County",null," County"]
[null,null,null,null,null,null,null,null,null,null,null,null,null,null,"Sterling","Sterling County",null," County",null," County",null," County",null," County",null," County",null," County"]
[null,null,null,null,null,null,null,null,null,null,null,null,null,null,"Stonewall","Stonewall County",null," County",null," County",null," County",null," County",null," County",null," County"]
[null,null,null,null,null,null,null,null,null,null,null,null,null,null,"Sutton","Sutton County",null," County",null," County",null," County",null," County",null," County",null," County"]
[null,null,null,null,null,null,null,null,null,null,null,null,null,null,"Swisher","Swisher County",null," County",null," County",null," County",null," County",null," County",null," County"]
[null,null,null,null,null,null,null,null,null,null,null,null,null,null,"Tarrant","Tarrant County",null," County",null," County",null," County",null," County",null," County",null," County"]
[null,null,null,null,null,null,null,null,null,null,null,null,null,null,"Taylor","Taylor County",null," County",null," County",null," County",null," County",null," County",null," County"]
[null,null,null,null,null,null,null,null,null,null,null,null,null,null,"Terrell","Terrell County",null," County",null," County",null," County",null," County",null," County",null," County"]
[null,null,null,null,null,null,null,null,null,null,null,null,null,null,"Terry","Terry County",null," County",null," County",null," County",null," County",null," County",null," County"]
[null,null,null,null,null,null,null,null,null,null,null,null,null,null,"Throckmorton","Throckmorton County",null," County",null," County",null," County",null," County",null," County",null," County"]
[null,null,null,null,null,null,null,null,null,null,null,null,null,null,"Titus","Titus County",null," County",null," County",null," County",null," County",null," County",null," County"]
[null,null,null,null,null,null,null,null,null,null,null,null,null,null,"Tom Green","Tom Green County",null," County",null," County",null," County",null," County",null," County",null," County"]
[null,null,null,null,null,null,null,null,null,null,null,null,null,null,"Travis","Travis County",null," County",null," County",null," County",null," County",null," County",null," County"]
[null,null,null,null,null,null,null,null,null,null,null,null,null,null,"Trinity","Trinity County",null," County",null," County",null," County",null," County",null," County",null," County"]
[null,null,null,null,null,null,null,null,null,null,null,null,null,null,"Tyler","Tyler County",null," County",null," County",null," County",null," County",null," County",null," County"]
[null,null,null,null,null,null,null,null,null,null,null,null,null,null,"Upshur","Upshur County",null," County",null," County",null," County",null," County",null," County",null," County"]
[null,null,null,null,null,null,null,null,null,null,null,null,null,null,"Upton","Upton County",null," County",null," County",null," County",null," County",null," County",null," County"]
[null,null,null,null,null,null,null,null,null,null,null,null,null,null,"Uvalde","Uvalde County",null," County",null," County",null," County",null," County",null," County",null," County"]
[null,null,null,null,null,null,null,null,null,null,null,null,null,null,"Val Verde","Val Verde County",null," County",null," County",null," County",null," County",null," County",null," County"]
[null,null,null,null,null,null,null,null,null,null,null,null,null,null,"Van Zandt","Van Zandt County",null," County",null," County",null," County",null," County",null," County",null," County"]
[null,null,null,null,null,null,null,null,null,null,null,null,null,null,"Victoria","Victoria County",null," County",null," County",null," County",null," County",null," County",null," County"]
[null,null,null,null,null,null,null,null,null,null,null,null,null,null,"Walker","Walker County",null," County",null," County",null," County",null," County",null," County",null," County"]
[null,null,null,null,null,null,null,null,null,null,null,null,null,null,"Waller","Waller County",null," County",null," County",null," County",null," County",null," County",null," County"]
[null,null,null,null,null,null,null,null,null,null,null,null,null,null,"Ward","Ward County",null," County",null," County",null," County",null," County",null," County",null," County"]
[null,null,null,null,null,null,null,null,null,null,null,null,null,null,"Washington","Washington County",null," County",null," County",null," County",null," County",null," County",null," County"]
[null,null,null,null,null,null,null,null,null,null,null,null,null,null,"Webb","Webb County",null," County",null," County",null," County",null," County",null," County",null," County"]
[null,null,null,null,null,null,null,null,null,null,null,null,null,null,"Wharton","Wharton County",null," County",null," County",null," County",null," County",null," County",null," County"]
[null,null,null,null,null,null,null,null,null,null,null,null,null,null,"Wheeler","Wheeler County",null," County",null," County",null," County",null," County",null," County",null," County"]
[null,null,null,null,null,null,null,null,null,null,null,null,null,null,"Wichita","Wichita County",null," County",null," County",null," County",null," County",null," County",null," County"]
[null,null,null,null,null,null,null,null,null,null,null,null,null,null,"Wilbarger","Wilbarger County",null," County",null," County",null," County",null," County",null," County",null," County"]
[null,null,null,null,null,null,null,null,null,null,null,null,null,null,"Willacy","Willacy County",null," County",null," County",null," County",null," County",null," County",null," County"]
[null,null,null,null,null,null,null,null,null,null,null,null,null,null,"Williamson","Williamson County",null," County",null," County",null," County",null," County",null," County",null," County"]
[null,null,null,null,null,null,null,null,null,null,null,null,null,null,"Wilson","Wilson County",null," County",null," County",null," County",null," County",null," County",null," County"]
[null,null,null,null,null,null,null,null,null,null,null,null,null,null,"Winkler","Winkler County",null," County",null," County",null," County",null," County",null," County",null," County"]
[null,null,null,null,null,null,null,null,null,null,null,null,null,null,"Wise","Wise County",null," County",null," County",null," County",null," County",null," County",null," County"]
[null,null,null,null,null,null,null,null,null,null,null,null,null,null,"Wood","Wood County",null," County",null," County",null," County",null," County",null," County",null," County"]
[null,null,null,null,null,null,null,null,null,null,null,null,null,null,"Yoakum","Yoakum County",null," County",null," County",null," County",null," County",null," County",null," County"]
[null,null,null,null,null,null,null,null,null,null,null,null,null,null,"Young","Young County",null," County",null," County",null," County",null," County",null," County",null," County"]
[null,null,null,null,null,null,null,null,null,null,null,null,null,null,"Zapata","Zapata County",null," County",null," County",null," County",null," County",null," County",null," County"]
[null,null,null,null,null,null,null,null,null,null,null,null,null,null,"Zavala","Zavala County",null," County",null," County",null," County",null," County",null," County",null," County"]

{"sheet":"AlRegDeeds","index":1,"n_rows":45,"n_cols":8,"rows_kept":45,"cut":false,"hidden":false,"merged":[]}
[]
["Name","Address","City, St Zip","Name2","Address2","City","St","Zip"]
["E&M SERVICES LLC","PO BOX 605","SUMITON, AL 35148",{"$f":"A3","v":"E&M SERVICES LLC"},{"$f":"B3","v":"PO BOX 605"},{"$f":"LEFT(C3,FIND(\",\",C3,1)-1)","v":"SUMITON"},{"$f":"MID(C3,FIND(\", \",C3,1)+2,2)","v":"AL"},{"$f":"RIGHT(SUBSTITUTE(C3,F3&\", \"&G3,\"\"),FIND(\" \",C3,2))","v":" 35148"}]
["BYOP ALABAMA, A CORPORATION","200 ROEBUCK PLAZA DR","BIRMINGHAM, AL 35206-1574",null,{"$f":"B4","v":"200 ROEBUCK PLAZA DR"},{"$f":"LEFT(C4,FIND(\",\",C4,1)-1)","v":"BIRMINGHAM"},{"$f":"MID(C4,FIND(\", \",C4,1)+2,2)","v":"AL"},{"$f":"RIGHT(SUBSTITUTE(C4,F4&\", \"&G4,\"\"),FIND(\" \",C4,2))","v":" 35206-1574"}]
["WADE EXCAVATING & CONTRACTING INC A CORPORATION","PO BOX 4263","HUNTSVILLE, AL 35815-4263",null,"PO BOX 4263","HUNTSVILLE","AL"," 35815-4263"]
["AASHNA LLC","14500 AL HIGHWAY 91","HANCEVILLE, AL 35077-3811",null,"14500 AL HIGHWAY 91","HANCEVILLE","AL"," 35077-3811"]
["CROPWELL SMALL ANIMAL HOSPITAL INC A CORPORATION","2308 MAYS DR","PELL CITY, AL 35128-7526",null,{"$f":"B7","v":"2308 MAYS DR"},{"$f":"LEFT(C7,FIND(\",\",C7,1)-1)","v":"PELL CITY"},{"$f":"MID(C7,FIND(\", \",C7,1)+2,2)","v":"AL"},{"$f":"RIGHT(SUBSTITUTE(C7,F7&\", \"&G7,\"\"),FIND(\" \",C7,2))","v":"-7526"}]
["BEAR CREEK TRUCKING INC, A CORPORATION","116 ELAM ACRES","BRENT, AL 35034-2432",null,"116 ELAM ACRES","BRENT","AL","34-2432"]
["BOLIN-REEVES FLORIST INC A CORPORATION","PO BOX 10004","BIRMINGHAM, AL 35202-4",null,"PO BOX 10004","BIRMINGHAM","AL"," 35202-4"]
["RUSSELL MANAGEMENT GROUP LLC A CORPORATION","4800 WHITESBURG DR SW STE 30 #406","HUNTSVILLE, AL 35802",null,"4800 WHITESBURG DR SW STE 30 #406","HUNTSVILLE","AL"," 35802"]
["MOON AUTOMOTIVE INC, A CORPORATION","3493 MOUNT OLIVE RD","MOUNT OLIVE, AL 35117-3700",null,"3493 MOUNT OLIVE RD","MOUNT OLIVE","AL","7-3700"]
["LOCAL JOES TRADING POST LLC","4967 RAINBOW DR","RAINBOW CITY, AL 35906",null,"4967 RAINBOW DR","RAINBOW CITY","AL"," 35906"]
["CARROLLS TRUCK & REPAIR INC A CORPORATION","27981 HIGHWAY 5","WOODSTOCK, AL 35188",null,"27981 HIGHWAY 5","WOODSTOCK","AL"," 35188"]
["HOPEWELL BAPTIST CHRUCH","4817 JEFFERSON AVE SW","BIRMINGHAM, AL 35221-1828",null,"4817 JEFFERSON AVE SW","BIRMINGHAM","AL"," 35221-1828"]
["LAS DELICIAS INC, A CORPORATION","PO BOX 8313","GADSDEN, AL 35902",null,"PO BOX 8313","GADSDEN","AL"," 35902"]
["TRAVIS LOGGING, AN LLC","1262 COUNTY ROAD 93","EVERGREEN, AL 36401",null,"1262 COUNTY ROAD 93","EVERGREEN","AL"," 36401"]
["NEWELL ASSOCIATES LLC","1490 NORTHBANK PARKWAY STE 248","TUSCALOOSA, AL 35406",null,"1490 NORTHBANK PARKWAY STE 248","TUSCALOOSA","AL"," 35406"]
["ALL AIR LLC","75 SHADY OAK TRL","DEATSVILLE, AL 36022",null,"75 SHADY OAK TRL","DEATSVILLE","AL"," 36022"]
["J SCOTT ENTERPRISES INC, A CORPORATION","198 PAWNEE VILLAGE ROAD","TARRANT, AL 35217",null,"198 PAWNEE VILLAGE ROAD","TARRANT","AL"," 35217"]
["JIM F OROS JR PC, A CORPORATION","PO BOX 430223","BIRMINGHAM, AL 35243-1223",null,"PO BOX 430223","BIRMINGHAM","AL"," 35243-1223"]
["TUSCALOOSA FIRE EQUIPMENT INC A CORPORATION","4507 17TH ST NE","TUSCALOOSA, AL 35404-1707",null,"4507 17TH ST NE","TUSCALOOSA","AL"," 35404-1707"]
["HUNTER TRANSPORTATION LLC","616 GADSDEN HWY","BIRMINGHAM, AL 35235",null,{"$f":"B22","v":"616 GADSDEN HWY"},{"$f":"LEFT(C22,FIND(\",\",C22,1)-1)","v":"BIRMINGHAM"},{"$f":"MID(C22,FIND(\", \",C22,1)+2,2)","v":"AL"},{"$f":"RIGHT(SUBSTITUTE(C22,F22&\", \"&G22,\"\"),FIND(\" \",C22,2))","v":" 35235"}]
["SMITH & ALSPAUGH PC, A CORPORATION","4 OFFICE PARK CIR STE 212","MOUNTAIN BRK, AL 35223-2538",null,"4 OFFICE PARK CIR STE 212","MOUNTAIN BRK","AL","5223-2538"]
["BRIGHTON CHRISTIAN MEMORIAL LLC","4400 9TH AVE NORTH","BESSEMER, AL 35020",null,"4400 9TH AVE NORTH","BESSEMER","AL"," 35020"]
["LANE ELECTRIC COMPANY LLC","307 26TH ST N","PELL CITY, AL 35125-1805",null,{"$f":"B25","v":"307 26TH ST N"},{"$f":"LEFT(C25,FIND(\",\",C25,1)-1)","v":"PELL CITY"},{"$f":"MID(C25,FIND(\", \",C25,1)+2,2)","v":"AL"},{"$f":"RIGHT(SUBSTITUTE(C25,F25&\", \"&G25,\"\"),FIND(\" \",C25,2))","v":"-1805"}]
["DEVINE FLOORING & DESIGN INC A CORPORATION","39814 PINE LN SE","BESSEMER, AL 35022",null,"39814 PINE LN SE","BESSEMER","AL"," 35022"]
["RIVER CITY INSULATION INC A CORPORATION","PO BOX 186","TRINITY, AL 35673-2",null,"PO BOX 186","TRINITY","AL"," 35673-2"]
["CC INC, A CORPORATION","858 BUTLER DR","MOBILE, AL 36693-5104",null,"858 BUTLER DR","MOBILE","AL","693-5104"]
["BYOP ALABAMA, A CORPORATION","200 ROEBUCK PLAZA DR","BIRMINGHAM, AL 35206-1574",null,"200 ROEBUCK PLAZA DR","BIRMINGHAM","AL"," 35206-1574"]
["JEWISH SOUTH INC, A CORPORATION","PO BOX 130052","BIRMINGHAM, AL 35213-52",null,"PO BOX 130052","BIRMINGHAM","AL"," 35213-52"]
["PERRY R WALL INC, A CORPORATION","1904 DELAWARE AVE","JASPER, AL 35501-5450",null,"1904 DELAWARE AVE","JASPER","AL","501-5450"]
["HYCHE CENTER FOR SENSORY AND MOTOR, AN LLC","1000 HIGHWAY 78 W","JASPER, AL 35501",null,"1000 HIGHWAY 78 W","JASPER","AL"," 35501"]
["TAG AUTO REPAIR INC, A CORPORATION","704 WARD AVE NE","HUNTSVILLE, AL 35801-3658",null,"704 WARD AVE NE","HUNTSVILLE","AL"," 35801-3658"]
["BROOKS SERVICES LLC","PO BOX 43827","BIRMINGHAM, AL 35243",null,"PO BOX 43827","BIRMINGHAM","AL"," 35243"]
["J W CABINETS & SUPPLY INC A CORPORATION","8035 TANNER WILLIAMS RD","MOBILE, AL 36608-8311",null,"8035 TANNER WILLIAMS RD","MOBILE","AL","608-8311"]
["SOUTHERN PETROLEUM MAINTENANCE A PARTNERSHIP","1654 COUNTY RD 1855","ARAB, AL 35016",null,"1654 COUNTY RD 1855","ARAB","AL"," 35016"]
["WADE EXCAVATING & CONTRACTING INC A CORPORATION","PO BOX 4263","HUNTSVILLE, AL 35815-4263",null,"PO BOX 4263","HUNTSVILLE","AL"," 35815-4263"]
["LAS DELICIAS INC, A CORPORATION","PO BOX 8313","GADSDEN, AL 35902",null,"PO BOX 8313","GADSDEN","AL"," 35902"]
[]
[]
[]
[]
["COOSA CHRISTIAN SCHOOL\n2736 WILLS CREEK RD\nGADSDEN, AL 35904-4576"]
[]
["https://arc-sos.state.al.us/cgi/uccmonth.mbr/output?s=9150&year=2023&month=1&order=sname&hld=sname&dir=ascend&page=Y"]

{"sheet":"Local TN RoD","index":2,"n_rows":12,"n_cols":5,"rows_kept":12,"cut":false,"hidden":false,"merged":[]}
["Hamilton","625 Georgia Ave # 400, Chattanooga, TN 37402",null,null,"7298 Flagridge Dr, Ooltewah, TN 37363"]
["Blount","349 Court St, Maryville, TN 37804",null,"Hamilton","625 Georgia Ave # 400, Chattanooga, TN 37402"]
["Bradley","155 N Ocoee St # 102, Cleveland, TN 37311",null,"Rhea","375 Church St # 106, Dayton, TN 37321"]
["Knox","400 Main St SW, Knoxville, TN 37902",null,"Meigs","17214 TN-58, Decatur, TN 37322"]
["Loudon","101 Mulberry St # 202, Loudon, TN 37774",null,"Roane","200 E Race St # 6, Kingston, TN 37763"]
["Monroe","103 College St S # 4, Madisonville, TN 37354",null,"Knox","400 Main St SW, Knoxville, TN 37902"]
["McMinn","6 E Madison Ave, Athens, TN 37303",null,"Blount","349 Court St, Maryville, TN 37804"]
["Meigs","17214 Tn-58, Decatur, Tn 37322",null,"Loudon","101 Mulberry St # 202, Loudon, TN 37774"]
["Polk","6239 US-411, Benton, TN 37307",null,"Monroe","103 College St S # 4, Madisonville, TN 37354"]
["Rhea","375 Church St # 106, Dayton, TN 37321",null,"McMinn","6 E Madison Ave, Athens, TN 37303"]
["Roane","200 E Race St # 6, Kingston, TN 37763",null,"Polk","6239 US-411, Benton, TN 37307"]
[null,null,null,"Bradley","155 N Ocoee St # 102, Cleveland, TN 37311"]